[Event "Titled Tuesday Blitz July 05 Late 2022"]
[White "Roman, Rodrigo"]
[Black "Nazaretyan, Tigran"]
[WhiteFideId "3701220"]
[BlackFideId "24162345"]
[WhiteElo "2001"]
[BlackElo "2179"]
[Result "0-1"]
[Round "05"]
[TimeControl "180+1"]
[Date "2022.07.06"]
[WhiteClock "0:00:25"]
[BlackClock "0:00:07"]

1. e4 {[%clk 0:02:46]}  c5 {[%clk 0:02:59]} 2. Nf3 {[%clk 0:02:45]}  Nc6 {[%clk 0:02:59]} 3. Bb5 {[%clk 0:02:44]}  g6 {[%clk 0:02:58]} 4. c3 {[%clk 0:02:43]}  Nf6 {[%clk 0:02:57]} 5. Bxc6 {[%clk 0:02:38]}  dxc6 {[%clk 0:02:57]} 6. Qe2 {[%clk 0:02:37]}  Bg7 {[%clk 0:02:55]} 7. O-O {[%clk 0:02:36]}  O-O {[%clk 0:02:54]} 8. Re1 {[%clk 0:02:36]}  e5 {[%clk 0:02:52]} 9. Rd1 {[%clk 0:02:34]}  Qc7 {[%clk 0:02:50]} 10. d4 {[%clk 0:02:32]}  cxd4 {[%clk 0:02:41]} 11. cxd4 {[%clk 0:02:33]}  exd4 {[%clk 0:02:40]} 12. Nxd4 {[%clk 0:02:33]}  Re8 {[%clk 0:02:39]} 13. Nc3 {[%clk 0:02:32]}  Bd7 {[%clk 0:02:11]} 14. f3 {[%clk 0:02:27]}  Rad8 {[%clk 0:02:10]} 15. Be3 {[%clk 0:02:26]}  Bc8 {[%clk 0:01:59]} 16. Rac1 {[%clk 0:02:25]}  Qb8 {[%clk 0:01:56]} 17. Qf2 {[%clk 0:02:07]}  a6 {[%clk 0:01:51]} 18. Nde2 {[%clk 0:01:57]}  Be6 {[%clk 0:01:43]} 19. Nf4 {[%clk 0:01:49]}  Rxd1+ {[%clk 0:01:37]} 20. Rxd1 {[%clk 0:01:48]}  Bc8 {[%clk 0:01:27]} 21. Nd3 {[%clk 0:01:44]}  Nd7 {[%clk 0:01:21]} 22. Bd4 {[%clk 0:01:43]}  Bf8 {[%clk 0:01:14]} 23. Nc5 {[%clk 0:01:41]}  Nxc5 {[%clk 0:01:13]} 24. Bxc5 {[%clk 0:01:41]}  Bg7 {[%clk 0:01:12]} 25. Bd4 {[%clk 0:01:40]}  Bf8 {[%clk 0:00:55]} 26. Bc5 {[%clk 0:01:38]}  Be6 {[%clk 0:00:52]} 27. Bxf8 {[%clk 0:01:37]}  Rxf8 {[%clk 0:00:53]} 28. Qd4 {[%clk 0:01:37]}  h5 {[%clk 0:00:51]} 29. b3 {[%clk 0:01:36]}  Qf4 {[%clk 0:00:44]} 30. Ne2 {[%clk 0:01:35]}  Qg5 {[%clk 0:00:43]} 31. Qd2 {[%clk 0:01:35]}  Qe7 {[%clk 0:00:42]} 32. Nf4 {[%clk 0:01:33]}  h4 {[%clk 0:00:40]} 33. Nxe6 {[%clk 0:01:32]}  Qxe6 {[%clk 0:00:40]} 34. Qd7 {[%clk 0:01:31]}  Qf6 {[%clk 0:00:28]} 35. Qxb7 {[%clk 0:01:25]}  h3 {[%clk 0:00:28]} 36. Qc7 {[%clk 0:01:15]}  hxg2 {[%clk 0:00:23]} 37. Qg3 {[%clk 0:01:10]}  Rd8 {[%clk 0:00:21]} 38. Rxd8+ {[%clk 0:01:09]}  Qxd8 {[%clk 0:00:22]} 39. Qxg2 {[%clk 0:01:09]}  Qd4+ {[%clk 0:00:22]} 40. Qf2 {[%clk 0:01:08]}  Qa1+ {[%clk 0:00:21]} 41. Kg2 {[%clk 0:01:08]}  a5 {[%clk 0:00:21]} 42. Qc2 {[%clk 0:01:02]}  Qf6 {[%clk 0:00:19]} 43. Qd2 {[%clk 0:00:59]}  c5 {[%clk 0:00:18]} 44. Qxa5 {[%clk 0:00:53]}  Qg5+ {[%clk 0:00:18]} 45. Kf2 {[%clk 0:00:52]}  Qh4+ {[%clk 0:00:17]} 46. Ke3 {[%clk 0:00:50]}  Qxh2 {[%clk 0:00:17]} 47. Qd2 {[%clk 0:00:34]}  Qg1+ {[%clk 0:00:16]} 48. Kd3 {[%clk 0:00:31]}  Qb1+ {[%clk 0:00:15]} 49. Kc4 {[%clk 0:00:26]}  Qf1+ {[%clk 0:00:14]} 50. Kxc5 {[%clk 0:00:25]}  Qxf3 {[%clk 0:00:13]} 51. Qd8+ {[%clk 0:00:25]}  Kh7 {[%clk 0:00:12]} 52. Qd4 {[%clk 0:00:26]}  Qe2 {[%clk 0:00:06]} 53. Qc4 {[%clk 0:00:26]}  Qxa2 {[%clk 0:00:05]} 54. Qxf7+ {[%clk 0:00:25]}  Kh6 {[%clk 0:00:05]} 55. Qf8+ {[%clk 0:00:26]}  Kh7 {[%clk 0:00:05]} 56. Qf7+ {[%clk 0:00:26]}  Kh6 {[%clk 0:00:05]} 57. Qf4+ {[%clk 0:00:27]}  Kg7 {[%clk 0:00:05]} 58. Qc7+ {[%clk 0:00:26]}  Kh6 {[%clk 0:00:05]} 59. Qf4+ {[%clk 0:00:25]}  Kg7 {[%clk 0:00:05]} 60. Qe3 {[%clk 0:00:25]}  Qa7+ {[%clk 0:00:04]} 61. Kd5 {[%clk 0:00:24]}  Qxe3 {[%clk 0:00:05]} 62. e5 {[%clk 0:00:24]}  Qxb3+ {[%clk 0:00:04]} 63. Kd6 {[%clk 0:00:25]}  Kf7 {[%clk 0:00:03]} 64. e6+ {[%clk 0:00:26]}  Qxe6+ {[%clk 0:00:04]} 65. Kc5 {[%clk 0:00:26]}  g5 {[%clk 0:00:05]} 66. Kd4 {[%clk 0:00:26]}  g4 {[%clk 0:00:05]} 67. Kc5 {[%clk 0:00:27]}  g3 {[%clk 0:00:06]} 68. Kd4 {[%clk 0:00:28]}  g2 {[%clk 0:00:07]} 69. Kc5 {[%clk 0:00:29]}  g1=Q+ {[%clk 0:00:06]} 70. Kb4 {[%clk 0:00:29]}  Qc1 {[%clk 0:00:06]} 71. Ka4 {[%clk 0:00:26]}  Qa2+ {[%clk 0:00:06]} 72. Kb4 {[%clk 0:00:25]}  Qab2+ {[%clk 0:00:06]} 73. Ka4 {[%clk 0:00:25]}  Qca1# {[%clk 0:00:07]} 0-1


[Site "https://www.chess.com"]

[Event "Titled Tuesday Blitz July 05 Late 2022"]
[White "Rustemov, Alexander"]
[Black "Veiga, Jose Francisco R P Neves"]
[WhiteFideId "4119002"]
[BlackFideId "1930087"]
[WhiteElo "2731"]
[BlackElo "2288"]
[Result "1-0"]
[Round "05"]
[TimeControl "180+1"]
[Date "2022.07.05"]
[WhiteClock "0:01:29"]
[BlackClock "0:00:10"]

1. d4 {[%clk 0:03:00]}  Nf6 {[%clk 0:02:59]} 2. c4 {[%clk 0:03:01]}  g6 {[%clk 0:02:59]} 3. Nf3 {[%clk 0:03:01]}  Bg7 {[%clk 0:02:59]} 4. g3 {[%clk 0:03:02]}  O-O {[%clk 0:02:59]} 5. Bg2 {[%clk 0:03:02]}  c6 {[%clk 0:03:00]} 6. Nc3 {[%clk 0:03:03]}  d5 {[%clk 0:03:01]} 7. Qb3 {[%clk 0:03:03]}  Qb6 {[%clk 0:02:54]} 8. O-O {[%clk 0:03:02]}  Rd8 {[%clk 0:02:50]} 9. Bf4 {[%clk 0:03:00]}  dxc4 {[%clk 0:02:18]} 10. Qxc4 {[%clk 0:02:59]}  Be6 {[%clk 0:02:17]} 11. Qd3 {[%clk 0:02:45]}  Na6 {[%clk 0:02:12]} 12. Qc2 {[%clk 0:02:34]}  Nb4 {[%clk 0:02:05]} 13. Qc1 {[%clk 0:02:28]}  Nfd5 {[%clk 0:01:51]} 14. Be5 {[%clk 0:02:27]}  f6 {[%clk 0:01:24]} 15. Bf4 {[%clk 0:02:26]}  Nxf4 {[%clk 0:01:18]} 16. Qxf4 {[%clk 0:02:25]}  Nd5 {[%clk 0:01:18]} 17. Qd2 {[%clk 0:02:18]}  Bf7 {[%clk 0:01:12]} 18. e3 {[%clk 0:02:18]}  Qa5 {[%clk 0:01:10]} 19. Rfd1 {[%clk 0:02:12]}  Rac8 {[%clk 0:01:09]} 20. a3 {[%clk 0:02:01]}  Nxc3 {[%clk 0:01:03]} 21. bxc3 {[%clk 0:02:01]}  c5 {[%clk 0:01:01]} 22. Qb2 {[%clk 0:01:54]}  b6 {[%clk 0:00:53]} 23. a4 {[%clk 0:01:49]}  Bd5 {[%clk 0:00:52]} 24. Nd2 {[%clk 0:01:44]}  Bxg2 {[%clk 0:00:52]} 25. Kxg2 {[%clk 0:01:44]}  cxd4 {[%clk 0:00:52]} 26. cxd4 {[%clk 0:01:43]}  e5 {[%clk 0:00:41]} 27. dxe5 {[%clk 0:01:38]}  f5 {[%clk 0:00:21]} 28. Nf3 {[%clk 0:01:34]}  h6 {[%clk 0:00:12]} 29. Qb3+ {[%clk 0:01:32]}  Kh7 {[%clk 0:00:12]} 30. h4 {[%clk 0:01:32]}  Rxd1 {[%clk 0:00:08]} 31. Rxd1 {[%clk 0:01:31]}  Qc3 {[%clk 0:00:09]} 32. Qxc3 {[%clk 0:01:30]}  Rxc3 {[%clk 0:00:10]} 33. Rd7 {[%clk 0:01:29]} 1-0


[Site "https://www.chess.com"]

[Event "Titled Tuesday Blitz July 05 Late 2022"]
[White "Salem, A.R. Saleh"]
[Black "Vasquez Schroeder, Rodrigo"]
[WhiteFideId "9301348"]
[BlackFideId "3400042"]
[WhiteElo "2679"]
[BlackElo "2567"]
[Result "1-0"]
[Round "05"]
[TimeControl "180+1"]
[Date "2022.07.05"]
[WhiteClock "0:00:06"]
[BlackClock "0:00:01"]

1. d4 {[%clk 0:03:00]}  Nf6 {[%clk 0:02:57]} 2. c4 {[%clk 0:03:01]}  g6 {[%clk 0:02:57]} 3. Nc3 {[%clk 0:03:01]}  Bg7 {[%clk 0:02:58]} 4. e4 {[%clk 0:02:57]}  d6 {[%clk 0:02:58]} 5. h3 {[%clk 0:02:56]}  O-O {[%clk 0:02:57]} 6. Be3 {[%clk 0:02:57]}  c5 {[%clk 0:02:49]} 7. Nf3 {[%clk 0:02:51]}  Qa5 {[%clk 0:02:40]} 8. Bd3 {[%clk 0:02:48]}  Nc6 {[%clk 0:02:25]} 9. d5 {[%clk 0:02:48]}  Nb4 {[%clk 0:02:24]} 10. Bb1 {[%clk 0:02:40]}  e5 {[%clk 0:02:17]} 11. g4 {[%clk 0:02:37]}  h5 {[%clk 0:02:09]} 12. Nh2 {[%clk 0:02:32]}  Bd7 {[%clk 0:02:03]} 13. Kf1 {[%clk 0:02:25]}  b5 {[%clk 0:01:58]} 14. cxb5 {[%clk 0:02:25]}  Bxb5+ {[%clk 0:01:56]} 15. Kg2 {[%clk 0:02:24]}  Bd7 {[%clk 0:01:56]} 16. a3 {[%clk 0:02:22]}  Na6 {[%clk 0:01:55]} 17. Bd3 {[%clk 0:02:16]}  Nc7 {[%clk 0:01:48]} 18. Qe2 {[%clk 0:02:06]}  Rfb8 {[%clk 0:01:43]} 19. Rhb1 {[%clk 0:00:46]}  Nb5 {[%clk 0:01:32]} 20. Nxb5 {[%clk 0:00:44]}  Bxb5 {[%clk 0:01:31]} 21. b4 {[%clk 0:00:44]}  Bxd3 {[%clk 0:01:16]} 22. Qxd3 {[%clk 0:00:45]}  cxb4 {[%clk 0:01:14]} 23. axb4 {[%clk 0:00:45]}  Qb5 {[%clk 0:01:10]} 24. Qxb5 {[%clk 0:00:41]}  Rxb5 {[%clk 0:01:11]} 25. f3 {[%clk 0:00:41]}  hxg4 {[%clk 0:00:52]} 26. hxg4 {[%clk 0:00:42]}  a5 {[%clk 0:00:52]} 27. bxa5 {[%clk 0:00:32]}  Rxb1 {[%clk 0:00:51]} 28. Rxb1 {[%clk 0:00:33]}  Rxa5 {[%clk 0:00:51]} 29. Rb8+ {[%clk 0:00:32]}  Kh7 {[%clk 0:00:50]} 30. Rb7 {[%clk 0:00:29]}  Kg8 {[%clk 0:00:50]} 31. Nf1 {[%clk 0:00:28]}  Ra2+ {[%clk 0:00:41]} 32. Kg3 {[%clk 0:00:28]}  Ra3 {[%clk 0:00:41]} 33. Kf2 {[%clk 0:00:27]}  Ra2+ {[%clk 0:00:41]} 34. Ke1 {[%clk 0:00:28]}  Nh7 {[%clk 0:00:36]} 35. Rb8+ {[%clk 0:00:25]}  Bf8 {[%clk 0:00:36]} 36. Bh6 {[%clk 0:00:23]}  f6 {[%clk 0:00:27]} 37. Nd2 {[%clk 0:00:20]}  Kf7 {[%clk 0:00:21]} 38. Bxf8 {[%clk 0:00:19]}  Nxf8 {[%clk 0:00:21]} 39. Rb7+ {[%clk 0:00:20]}  Ke8 {[%clk 0:00:19]} 40. Nc4 {[%clk 0:00:21]}  Ra6 {[%clk 0:00:19]} 41. Rg7 {[%clk 0:00:20]}  g5 {[%clk 0:00:19]} 42. Ne3 {[%clk 0:00:20]}  Nd7 {[%clk 0:00:17]} 43. Nf5 {[%clk 0:00:20]}  Nc5 {[%clk 0:00:18]} 44. Re7+ {[%clk 0:00:18]}  Kd8 {[%clk 0:00:18]} 45. Rf7 {[%clk 0:00:18]}  Nd7 {[%clk 0:00:19]} 46. Kd2 {[%clk 0:00:16]}  Kc7 {[%clk 0:00:19]} 47. Ng7 {[%clk 0:00:15]}  Ra2+ {[%clk 0:00:17]} 48. Ke3 {[%clk 0:00:13]}  Ra3+ {[%clk 0:00:17]} 49. Kf2 {[%clk 0:00:14]}  Kc8 {[%clk 0:00:17]} 50. Kg3 {[%clk 0:00:14]}  Nc5 {[%clk 0:00:17]} 51. Ne8 {[%clk 0:00:14]}  Nxe4+ {[%clk 0:00:17]} 52. Kg2 {[%clk 0:00:13]}  Ra2+ {[%clk 0:00:16]} 53. Kg1 {[%clk 0:00:14]}  Kd8 {[%clk 0:00:12]} 54. Ng7 {[%clk 0:00:08]}  Nd2 {[%clk 0:00:10]} 55. Rxf6 {[%clk 0:00:07]}  Ke7 {[%clk 0:00:10]} 56. Rf5 {[%clk 0:00:07]}  Nc4 {[%clk 0:00:09]} 57. Rxg5 {[%clk 0:00:06]}  Ne3 {[%clk 0:00:08]} 58. Nf5+ {[%clk 0:00:03]}  Kf6 {[%clk 0:00:08]} 59. Rh5 {[%clk 0:00:04]}  Nxd5 {[%clk 0:00:08]} 60. Nxd6 {[%clk 0:00:04]}  Nf4 {[%clk 0:00:09]} 61. Ne4+ {[%clk 0:00:05]}  Ke6 {[%clk 0:00:09]} 62. Rh6+ {[%clk 0:00:05]}  Kd5 {[%clk 0:00:08]} 63. Rd6+ {[%clk 0:00:05]}  Kc4 {[%clk 0:00:08]} 64. g5 {[%clk 0:00:06]}  Rg2+ {[%clk 0:00:07]} 65. Kf1 {[%clk 0:00:06]}  Rh2 {[%clk 0:00:08]} 66. Rd8 {[%clk 0:00:05]}  Rh1+ {[%clk 0:00:07]} 67. Kf2 {[%clk 0:00:05]}  Rh2+ {[%clk 0:00:08]} 68. Kg3 {[%clk 0:00:06]}  Rg2+ {[%clk 0:00:08]} 69. Kh4 {[%clk 0:00:07]}  Rg1 {[%clk 0:00:07]} 70. Rd7 {[%clk 0:00:07]}  Rg2 {[%clk 0:00:07]} 71. Rd6 {[%clk 0:00:07]}  Rg1 {[%clk 0:00:06]} 72. Rd8 {[%clk 0:00:08]}  Rg2 {[%clk 0:00:06]} 73. Rd7 {[%clk 0:00:08]}  Rg1 {[%clk 0:00:06]} 74. Nf6 {[%clk 0:00:09]}  Ng6+ {[%clk 0:00:04]} 75. Kh5 {[%clk 0:00:09]}  Nf4+ {[%clk 0:00:04]} 76. Kh6 {[%clk 0:00:08]}  Kc5 {[%clk 0:00:05]} 77. Ne4+ {[%clk 0:00:08]}  Kc4 {[%clk 0:00:06]} 78. Rd6 {[%clk 0:00:08]}  Rf1 {[%clk 0:00:05]} 79. g6 {[%clk 0:00:07]}  Nxg6 {[%clk 0:00:02]} 80. Kxg6 {[%clk 0:00:03]}  Rxf3 {[%clk 0:00:03]} 81. Ng5 {[%clk 0:00:04]}  Rf4 {[%clk 0:00:02]} 82. Re6 {[%clk 0:00:04]}  Kd5 {[%clk 0:00:02]} 83. Re8 {[%clk 0:00:04]}  Rf1 {[%clk 0:00:02]} 84. Rd8+ {[%clk 0:00:04]}  Kc4 {[%clk 0:00:03]} 85. Ne4 {[%clk 0:00:05]}  Rf4 {[%clk 0:00:02]} 86. Nf6 {[%clk 0:00:05]}  Kc5 {[%clk 0:00:02]} 87. Kg5 {[%clk 0:00:06]}  Rf1 {[%clk 0:00:01]} 88. Ne4+ {[%clk 0:00:05]}  Kc4 {[%clk 0:00:02]} 89. Ng3 {[%clk 0:00:06]}  Kc3 {[%clk 0:00:02]} 90. Nxf1 {[%clk 0:00:06]}  e4 {[%clk 0:00:01]} 91. Kf4 {[%clk 0:00:06]} 1-0


[Site "https://www.chess.com"]

[Event "Titled Tuesday Blitz July 05 Late 2022"]
[White "Sargsyan, Anna M."]
[Black "Dardha, Daniel"]
[WhiteFideId "13308130"]
[BlackFideId "240990"]
[WhiteElo "2271"]
[BlackElo "2482"]
[Result "1/2-1/2"]
[Round "05"]
[TimeControl "180+1"]
[Date "2022.07.05"]
[WhiteClock "0:00:04"]
[BlackClock "0:00:03"]

1. d4 {[%clk 0:03:00]}  Nf6 {[%clk 0:02:56]} 2. c4 {[%clk 0:03:01]}  e6 {[%clk 0:02:56]} 3. Nf3 {[%clk 0:03:00]}  d5 {[%clk 0:02:54]} 4. Nc3 {[%clk 0:02:59]}  dxc4 {[%clk 0:02:54]} 5. e4 {[%clk 0:02:55]}  b5 {[%clk 0:02:53]} 6. e5 {[%clk 0:02:54]}  Nd5 {[%clk 0:02:52]} 7. Nxb5 {[%clk 0:02:54]}  Nb6 {[%clk 0:02:51]} 8. Be3 {[%clk 0:02:53]}  Be7 {[%clk 0:02:50]} 9. Nc3 {[%clk 0:02:49]}  O-O {[%clk 0:02:48]} 10. Be2 {[%clk 0:02:50]}  Nc6 {[%clk 0:02:48]} 11. O-O {[%clk 0:02:50]}  Ba6 {[%clk 0:02:48]} 12. Rc1 {[%clk 0:02:49]}  Nb4 {[%clk 0:02:47]} 13. a3 {[%clk 0:02:48]}  Nd3 {[%clk 0:02:47]} 14. Rb1 {[%clk 0:02:39]}  c5 {[%clk 0:02:22]} 15. Bxd3 {[%clk 0:02:35]}  cxd3 {[%clk 0:02:21]} 16. dxc5 {[%clk 0:02:35]}  Nd5 {[%clk 0:02:07]} 17. Qa4 {[%clk 0:02:21]}  Nxe3 {[%clk 0:01:58]} 18. fxe3 {[%clk 0:02:21]}  Qc8 {[%clk 0:01:51]} 19. c6 {[%clk 0:01:28]}  Bc5 {[%clk 0:01:13]} 20. Nd4 {[%clk 0:01:27]}  Rd8 {[%clk 0:01:04]} 21. Ne4 {[%clk 0:01:21]}  Be7 {[%clk 0:00:50]} 22. b4 {[%clk 0:01:13]}  Bc4 {[%clk 0:00:47]} 23. b5 {[%clk 0:01:06]}  Bd5 {[%clk 0:00:47]} 24. Nc3 {[%clk 0:01:05]}  Qc7 {[%clk 0:00:45]} 25. e4 {[%clk 0:00:52]}  Ba2 {[%clk 0:00:22]} 26. Rbd1 {[%clk 0:00:34]}  a6 {[%clk 0:00:11]} 27. bxa6 {[%clk 0:00:16]}  Bc5 {[%clk 0:00:07]} 28. Rxd3 {[%clk 0:00:16]}  Bb3 {[%clk 0:00:08]} 29. Qxb3 {[%clk 0:00:13]}  Rxd4 {[%clk 0:00:05]} 30. Rxd4 {[%clk 0:00:13]}  Bxd4+ {[%clk 0:00:06]} 31. Kh1 {[%clk 0:00:13]}  Qxc6 {[%clk 0:00:03]} 32. Nb5 {[%clk 0:00:13]}  Bxe5 {[%clk 0:00:02]} 33. a7 {[%clk 0:00:13]}  Qa6 {[%clk 0:00:02]} 34. Rd1 {[%clk 0:00:09]}  h6 {[%clk 0:00:02]} 35. a4 {[%clk 0:00:09]}  Rxa7 {[%clk 0:00:01]} 36. Nxa7 {[%clk 0:00:08]}  Qxa7 {[%clk 0:00:02]} 37. Qb5 {[%clk 0:00:08]}  Bf4 {[%clk 0:00:02]} 38. h3 {[%clk 0:00:07]}  Qf2 {[%clk 0:00:01]} 39. Qe8+ {[%clk 0:00:04]}  Kh7 {[%clk 0:00:01]} 40. Qxf7 {[%clk 0:00:03]}  Qg3 {[%clk 0:00:02]} 41. Kg1 {[%clk 0:00:04]}  Be3+ {[%clk 0:00:02]} 42. Kh1 {[%clk 0:00:04]}  Bf4 {[%clk 0:00:03]} 43. Kg1 {[%clk 0:00:05]}  Qh2+ {[%clk 0:00:02]} 44. Kf2 {[%clk 0:00:04]}  Qg3+ {[%clk 0:00:03]} 45. Kg1 {[%clk 0:00:04]} 1/2-1/2


[Site "https://www.chess.com"]

[Event "Titled Tuesday Blitz July 05 Late 2022"]
[White "Shimanov, Aleksandr"]
[Black "Kozionov, Kirill"]
[WhiteFideId "4198603"]
[BlackFideId "24101729"]
[WhiteElo "2605"]
[BlackElo "2426"]
[Result "1-0"]
[Round "05"]
[TimeControl "180+1"]
[Date "2022.07.05"]
[WhiteClock "0:00:29"]
[BlackClock "0:00:01"]

1. e4 {[%clk 0:03:00]}  c5 {[%clk 0:02:59]} 2. Nf3 {[%clk 0:02:59]}  d6 {[%clk 0:02:59]} 3. d4 {[%clk 0:02:58]}  cxd4 {[%clk 0:02:59]} 4. Qxd4 {[%clk 0:02:59]}  Nf6 {[%clk 0:02:58]} 5. Bg5 {[%clk 0:02:56]}  e6 {[%clk 0:02:54]} 6. Nc3 {[%clk 0:02:53]}  Be7 {[%clk 0:02:54]} 7. O-O-O {[%clk 0:02:53]}  Nc6 {[%clk 0:02:25]} 8. Bb5 {[%clk 0:02:51]}  Bd7 {[%clk 0:02:23]} 9. Qd3 {[%clk 0:02:51]}  a6 {[%clk 0:02:18]} 10. Bxc6 {[%clk 0:02:47]}  Bxc6 {[%clk 0:02:18]} 11. Nd4 {[%clk 0:02:47]}  Rc8 {[%clk 0:02:10]} 12. f4 {[%clk 0:02:42]}  O-O {[%clk 0:01:34]} 13. Qg3 {[%clk 0:02:35]}  Qa5 {[%clk 0:01:12]} 14. e5 {[%clk 0:02:11]}  dxe5 {[%clk 0:00:52]} 15. fxe5 {[%clk 0:02:12]}  Nd5 {[%clk 0:00:48]} 16. Bh6 {[%clk 0:01:54]}  g6 {[%clk 0:00:48]} 17. Nxc6 {[%clk 0:01:46]}  bxc6 {[%clk 0:00:40]} 18. Bxf8 {[%clk 0:01:44]}  Bxf8 {[%clk 0:00:39]} 19. Nxd5 {[%clk 0:01:39]}  cxd5 {[%clk 0:00:39]} 20. Kb1 {[%clk 0:01:39]}  Rb8 {[%clk 0:00:27]} 21. Rd3 {[%clk 0:01:37]}  Qa4 {[%clk 0:00:16]} 22. Rb3 {[%clk 0:01:37]}  Rd8 {[%clk 0:00:16]} 23. Rf1 {[%clk 0:01:01]}  Qd7 {[%clk 0:00:16]} 24. Qf4 {[%clk 0:00:56]}  Rc8 {[%clk 0:00:13]} 25. Rbf3 {[%clk 0:00:56]}  Rc7 {[%clk 0:00:13]} 26. Rb3 {[%clk 0:00:54]}  a5 {[%clk 0:00:13]} 27. Rb8 {[%clk 0:00:54]}  Qc6 {[%clk 0:00:08]} 28. c3 {[%clk 0:00:51]}  Qa6 {[%clk 0:00:06]} 29. a4 {[%clk 0:00:30]}  Qd3+ {[%clk 0:00:04]} 30. Ka2 {[%clk 0:00:31]}  Qc4+ {[%clk 0:00:02]} 31. Qxc4 {[%clk 0:00:30]}  dxc4 {[%clk 0:00:01]} 32. Ra8 {[%clk 0:00:29]} 1-0


[Site "https://www.chess.com"]

[Event "Titled Tuesday Blitz July 05 Late 2022"]
[White "Shuvalova, Polina"]
[Black "Vakhlamov, Igor L."]
[WhiteFideId "24171760"]
[BlackFideId "24126748"]
[WhiteElo "2330"]
[BlackElo "2401"]
[Result "0-1"]
[Round "05"]
[TimeControl "180+1"]
[Date "2022.07.05"]
[WhiteClock "0:01:55"]
[BlackClock "0:01:13"]

1. e4 {[%clk 0:03:00]}  c5 {[%clk 0:03:00]} 2. Nf3 {[%clk 0:03:00]}  Nc6 {[%clk 0:03:00]} 3. g3 {[%clk 0:03:00]}  Nf6 {[%clk 0:03:00]} 4. d3 {[%clk 0:03:01]}  d5 {[%clk 0:03:01]} 5. exd5 {[%clk 0:03:00]}  Nxd5 {[%clk 0:03:02]} 6. Bg2 {[%clk 0:03:01]}  g6 {[%clk 0:03:02]} 7. O-O {[%clk 0:03:01]}  Bg7 {[%clk 0:03:02]} 8. Re1 {[%clk 0:03:01]}  O-O {[%clk 0:03:03]} 9. Qe2 {[%clk 0:03:01]}  b6 {[%clk 0:02:46]} 10. Nbd2 {[%clk 0:03:00]}  Bb7 {[%clk 0:02:46]} 11. Ne4 {[%clk 0:03:00]}  Rc8 {[%clk 0:02:44]} 12. c3 {[%clk 0:03:00]}  Re8 {[%clk 0:02:42]} 13. h4 {[%clk 0:03:00]}  Nf6 {[%clk 0:02:36]} 14. Bg5 {[%clk 0:02:59]}  Nxe4 {[%clk 0:02:35]} 15. dxe4 {[%clk 0:02:59]}  Qc7 {[%clk 0:02:34]} 16. Rad1 {[%clk 0:02:59]}  Rcd8 {[%clk 0:02:30]} 17. h5 {[%clk 0:02:59]}  Rxd1 {[%clk 0:02:28]} 18. Rxd1 {[%clk 0:03:00]}  Rd8 {[%clk 0:02:28]} 19. h6 {[%clk 0:03:00]}  Bf8 {[%clk 0:02:23]} 20. Bf4 {[%clk 0:03:00]}  Qc8 {[%clk 0:02:22]} 21. e5 {[%clk 0:02:54]}  Ba6 {[%clk 0:02:15]} 22. c4 {[%clk 0:02:53]}  Rxd1+ {[%clk 0:02:11]} 23. Qxd1 {[%clk 0:02:53]}  Bxc4 {[%clk 0:02:11]} 24. b3 {[%clk 0:02:53]}  Be6 {[%clk 0:02:01]} 25. Ng5 {[%clk 0:02:53]}  Bd7 {[%clk 0:02:01]} 26. Qd5 {[%clk 0:02:51]}  Nd8 {[%clk 0:01:47]} 27. Kh2 {[%clk 0:02:50]}  Bxh6 {[%clk 0:01:29]} 28. e6 {[%clk 0:02:43]}  Nxe6 {[%clk 0:01:19]} 29. Nxf7 {[%clk 0:01:58]}  Bxf4 {[%clk 0:01:17]} 30. gxf4 {[%clk 0:01:58]}  Kxf7 {[%clk 0:01:16]} 31. Bh3 {[%clk 0:01:57]}  Qc6 {[%clk 0:01:13]} 32. Qd2 {[%clk 0:01:55]}  Qd6 {[%clk 0:01:13]} 0-1


[Site "https://www.chess.com"]